fUSD/lending_fUSD_20240201
["ID","MTS","AMOUNT","RATE_DAILY","PERIOD"]
[313110420,1706757048871,-1443.17,0.00033424,2]
[313110421,1706757048880,-763.54,0.00033424,2]
[313110422,1706757048889,-500.0,0.00033424,2]
[313110423,1706757048898,-500.0,0.00033424,2]
[313110424,1706757048907,-500.0,0.00033424,2]
[313110425,1706757048916,-801.96,0.00033424,2]
[313110426,1706757048925,-703.15,0.00033424,2]
[313110427,1706757048934,-1428.1,0.00033424,2]
[313110428,1706757048943,-529.8942393,0.00033424,2]
[313110429,1706757048952,-500.0,0.00033424,2]
[313110430,1706757048961,-500.0,0.00033424,2]
[313110431,1706757048970,-500.0,0.00033424,2]
[313110432,1706757048979,-500.0,0.00033424,2]
[313110433,1706757048988,-500.0,0.00033424,2]
[313110434,1706757048997,-598.86,0.00033424,2]
[313110435,1706757049007,-500.0,0.00033424,2]
[313110436,1706757049016,-500.0,0.00033424,2]
[313110437,1706757049026,-500.0,0.00033424,2]
[313110438,1706757049035,-822.02,0.00033424,2]
[313110439,1706757049044,-855.84,0.00033424,2]
[313110440,1706757049054,-605.46,0.00033424,2]
[313110441,1706757049063,-500.0,0.00033424,2]
[313110442,1706757049071,-500.0,0.00033424,2]
[313110443,1706757049081,-500.0,0.00033424,2]
[313110444,1706757049090,-500.0,0.00033424,2]
[313110445,1706757049099,-1459.28,0.00033424,2]
[313110446,1706757049108,-512.04792328,0.00033424,2]
[313110447,1706757049117,-636.34,0.00033424,2]
[313110448,1706757049126,-500.0,0.00033424,2]
[313110449,1706757049135,-500.0,0.00033424,2]
[313110450,1706757049144,-842.95,0.00033424,5]
[313110451,1706757049153,-631.92,0.00033424,2]
[313110452,1706757049162,-772.42,0.00033424,2]
[313110453,1706757049171,-515.00948955,0.00033424,2]
[313110454,1706757049180,-500.0,0.00033424,2]
[313110455,1706757049189,-500.0,0.00033424,2]
[313110456,1706757049198,-549.82480856,0.00033424,2]
[313110457,1706757049207,-515.34,0.00033424,2]
[313110458,1706757049217,-176.8,0.00033444,2]
[313110459,1706757049226,-234.0201,0.00033448,4]
[313110460,1706757049235,-234.0201,0.00033548,4]
[313110461,1706757049244,-151.29,0.00033562,2]
[313110462,1706757049253,-6398.96170144,0.00033571,5]
[313110463,1706757049262,-800.0,0.00033589,2]
[313110464,1706757049272,-182.0201,0.00033648,4]
[313110465,1706757049281,-200.0,0.00033666,5]
[313110466,1706757049291,-204.179106,0.00033666,5]
[313110467,1706757049300,-151.0201,0.00033748,4]
[313110468,1706757049309,-156.53184766,0.00033755,2]
[313110469,1706757049318,-611.62,0.0003377,2]
[313110470,1706757049328,-500.0,0.0003377,2]
[313110471,1706757049337,-6398.96170144,0.00033771,6]
[313110472,1706757049346,-300.00890078,0.00033842,2]
[313110473,1706757049356,-913.12412256,0.00033844,2]
[313110474,1706757049365,-151.0201,0.00033848,4]
[313110475,1706757049374,-3680.95591195,0.00033856,2]
[313110476,1706757049383,-1985.28430685,0.00033871,6]
[313110477,1706757049392,-151.0201,0.00033948,4]
[313110478,1706757049401,-431.96095718,0.0003395,4]
[313110479,1706757049410,-6398.96170144,0.0003397,6]
[313110480,1706757049420,-336.01542095,0.00033972,4]
[313110481,1706757049429,-1000.0,0.00033972,7]
[313110482,1706757049438,-500.0,0.00033972,2]
[313110483,1706757049446,-511.25195866,0.00033972,2]
[313110484,1706757049455,-602.08,0.00033972,2]
[313110485,1706757049465,-500.0,0.00033972,2]
[313110486,1706757049474,-500.0,0.00033972,2]
[313110487,1706757049483,-500.0,0.00033972,10]
[313110488,1706757049493,-582.78,0.00033972,2]
[313110489,1706757049503,-500.0,0.00033972,2]
[313110490,1706757049513,-535.17363938,0.00033972,2]
[313110491,1706757049522,-763.16,0.00033972,2]
[313110492,1706757049533,-1461.41,0.00033972,2]
[313110493,1706757049542,-500.0,0.00033972,2]
[313110494,1706757049551,-500.0,0.00033972,2]
[313110495,1706757049560,-500.0,0.00033972,2]
[313110496,1706757049570,-638.86,0.00033972,2]
[313110497,1706757049580,-539.23,0.00033972,2]
[313110498,1706757049589,-626.08,0.00033972,2]
[313110499,1706757049598,-515.00358927,0.00033972,2]
[313110500,1706757049607,-500.0,0.00033972,2]
[313110501,1706757049617,-500.0,0.00033972,2]
[313110502,1706757049626,-974.69,0.00033972,2]
[313110503,1706757049635,-500.0,0.00033972,2]
[313110504,1706757049644,-1198.3,0.00033972,2]
[313110505,1706757049654,-500.0,0.00033972,2]
[313110506,1706757049663,-500.0,0.00033972,2]
[313110507,1706757049673,-500.0,0.00033972,2]
[313110508,1706757049683,-500.0,0.00033972,2]
[313110509,1706757049693,-500.0,0.00033972,2]
[313110510,1706757049702,-500.0,0.00033972,2]
[313110511,1706757049712,-500.0,0.00033972,2]
[313110512,1706757049722,-1040.1,0.00033972,2]
[313110513,1706757049731,-772.83,0.00033972,2]
[313110514,1706757049741,-500.0,0.00033972,2]
[313110515,1706757049750,-500.0,0.00033972,2]
[313110516,1706757049759,-721.98,0.00033972,2]
[313110517,1706757049768,-1367.38,0.00033972,7]
[313110518,1706757049777,-500.0,0.00033972,2]
[313110519,1706757049787,-206.62501842,0.00033972,2]
[313110520,1706757049796,-500.0,0.00033972,2]
[313110521,1706757049804,-500.0,0.00033972,2]
[313110522,1706757049813,-500.0,0.00033972,2]
[313110523,1706757049822,-500.0,0.00033972,2]
[313110524,1706757049831,-500.0,0.00033972,2]
[313110525,1706757049841,-500.0,0.00033972,2]
[313110526,1706757049849,-500.0,0.00033972,2]
[313110527,1706757049859,-1038.86,0.00033972,2]
[313110528,1706757049868,-337.16174964,0.00033972,2]
[313110529,1706757049877,-500.0,0.00033972,2]
[313110530,1706757049886,-500.0,0.00033972,2]
[313110531,1706757049896,-500.0,0.00033972,2]
[313110532,1706757049906,-500.0,0.00033972,2]
[313110533,1706757049915,-500.0,0.00033972,2]
[313110534,1706757049924,-250.18441558,0.00033972,3]
[313110535,1706757049933,-500.0,0.00033972,2]
[313110536,1706757049943,-500.0,0.00033972,2]
[313110537,1706757049952,-500.0,0.00033972,2]
[313110538,1706757049961,-500.0,0.00033972,2]
[313110539,1706757049971,-500.0,0.00033972,2]
[313110540,1706757049980,-500.0,0.00033972,2]
[313110541,1706757049989,-500.0,0.00033972,2]
[313110542,1706757049997,-500.0,0.00033972,2]
[313110543,1706757050006,-500.0,0.00033972,2]
[313110544,1706757050015,-1292.86,0.00033972,2]
[313110545,1706757050024,-500.0,0.00033972,2]
[313110546,1706757050033,-500.0,0.00033972,2]
[313110547,1706757050042,-500.0,0.00033972,2]
[313110548,1706757050050,-500.0,0.00033972,2]
[313110549,1706757050060,-910.9,0.00033972,2]
[313110550,1706757050069,-500.0,0.00033972,2]
[313110551,1706757050079,-567.16,0.00033972,2]
[313110552,1706757050089,-500.0,0.00033972,2]
[313110553,1706757050098,-500.0,0.00033972,2]
[313110554,1706757050107,-500.0,0.00033972,2]
[313110555,1706757050117,-158.56059797,0.00033972,2]
[313110556,1706757050126,-500.0,0.00033972,2]
[313110557,1706757050136,-500.0,0.00033972,2]
[313110558,1706757050145,-500.0,0.00033972,2]
[313110559,1706757050154,-500.0,0.00033972,2]
[313110560,1706757050164,-500.0,0.00033972,2]
[313110561,1706757050173,-500.0,0.00033972,2]
[313110562,1706757050182,-500.0,0.00033972,2]
[313110563,1706757050192,-500.0,0.00033972,2]
[313110564,1706757050201,-427.22800297,0.00033972,2]
[313110565,1706757050210,-500.0,0.00033972,2]
[313110566,1706757050219,-500.0,0.00033972,2]
[313110567,1706757050229,-500.0,0.00033972,2]
[313110568,1706757050238,-500.0,0.00033972,2]
[313110569,1706757050248,-533.76270983,0.00033972,2]
[313110570,1706757050258,-500.0,0.00033972,2]
[313110571,1706757050267,-500.0,0.00033972,2]
[313110572,1706757050277,-500.0,0.00033972,2]
[313110573,1706757050286,-500.0,0.00033972,2]
[313110574,1706757050295,-500.0,0.00033972,2]
[313110575,1706757050305,-500.0,0.00033972,2]
[313110576,1706757050314,-1582.9,0.00033972,2]
[313110577,1706757050323,-619.81763256,0.00033972,2]
[313110578,1706757050332,-500.0,0.00033972,2]
[313110579,1706757050342,-500.0,0.00033972,2]
[313110580,1706757050351,-521.23,0.00033972,2]
[313110581,1706757050360,-500.0,0.00033972,2]
[313110582,1706757050370,-1429.5,0.00033972,2]
[313110583,1706757050379,-802.68,0.00033972,2]
[313110584,1706757050389,-500.0,0.00033972,2]
[313110585,1706757050398,-1220.59,0.00033972,2]
[313110586,1706757050407,-500.0,0.00033972,2]
[313110587,1706757050417,-500.0,0.00033972,2]
[313110588,1706757050426,-1000.0,0.00033972,21]
[313110589,1706757050436,-18391.59,0.00033972,2]
[313110590,1706757050445,-580.02,0.00033972,2]
[313110591,1706757050455,-525.41,0.00033972,2]
[313110592,1706757050464,-2517.92,0.00033972,2]
[313110593,1706757050474,-962.68,0.00033972,2]
[313110594,1706757050483,-1052.86,0.00033972,2]
[313110595,1706757050493,-500.0,0.00033972,2]
[313110596,1706757050504,-500.0,0.00033972,2]
[313110597,1706757050513,-500.0,0.00033972,2]
[313110598,1706757050522,-500.0,0.00033972,2]
[313110599,1706757050532,-1366.96,0.00033972,2]
[313110600,1706757050541,-1283.42,0.00033972,2]
[313110601,1706757050550,-500.0,0.00033972,2]
[313110602,1706757050559,-2774.32,0.00033972,2]
[313110603,1706757050569,-500.0,0.00033972,2]
[313110604,1706757050578,-500.0,0.00033972,2]
[313110605,1706757050587,-500.0,0.00033972,2]
[313110606,1706757050597,-2427.53,0.00033972,2]
[313110607,1706757050607,-500.0,0.00033972,2]
[313110608,1706757050616,-232.41617919,0.00033972,2]
[313110609,1706757050626,-500.0,0.00033972,2]
[313110610,1706757050635,-500.0,0.00033972,2]
[313110611,1706757050644,-692.94,0.00033972,2]
[313110612,1706757050654,-500.0,0.00033972,2]
[313110613,1706757050663,-781.04,0.00033972,2]
[313110614,1706757050674,-500.0,0.00033972,2]
[313110615,1706757050683,-500.0,0.00033972,2]
[313110616,1706757050692,-500.0,0.00033972,2]
[313110617,1706757050701,-1265.93,0.00033972,2]
[313110618,1706757050711,-500.0,0.00033972,2]
[313110619,1706757050720,-500.0,0.00033972,2]
[313110620,1706757050729,-608.77,0.00033972,2]
[313110621,1706757050739,-500.0,0.00033972,2]
[313110622,1706757050748,-500.0,0.00033972,2]
[313110623,1706757050757,-500.0,0.00033972,2]
[313110624,1706757050767,-780.39,0.00033972,2]
[313110625,1706757050775,-1310.07,0.00033972,2]
[313110626,1706757050784,-500.0,0.00033972,2]
[313110627,1706757050794,-500.0,0.00033972,2]
[313110628,1706757050803,-500.0,0.00033972,2]
[313110629,1706757050812,-1019.17,0.00033972,2]
[313110630,1706757050822,-791.93,0.00033972,2]
[313110631,1706757050832,-500.0,0.00033972,2]
[313110632,1706757050842,-849.17,0.00033972,2]
[313110633,1706757050853,-3234.51,0.00033972,2]
[313110634,1706757050863,-617.58,0.00033972,2]
[313110635,1706757050874,-500.0,0.00033972,2]
[313110636,1706757050885,-534.32455932,0.00033972,2]
[313110637,1706757050895,-5130.23,0.00033972,2]
[313110638,1706757050905,-552.57,0.00033972,2]
[313110639,1706757050915,-500.0,0.00033972,2]
[313110640,1706757050925,-500.0,0.00033972,2]
[313110641,1706757050934,-697.51,0.00033972,2]
[313110642,1706757050944,-500.0,0.00033972,2]
[313110643,1706757050953,-500.0,0.00033972,2]
[313110644,1706757050963,-500.0,0.00033972,2]
[313110645,1706757050972,-500.0,0.00033972,2]
[313110646,1706757050981,-500.0,0.00033972,2]
[313110647,1706757050990,-1024.99,0.00033972,2]
[313110648,1706757050999,-566.97,0.00033972,2]
[313110649,1706757051008,-795.0,0.00033972,2]
[313110650,1706757051017,-500.0,0.00033972,2]
[313110651,1706757051027,-2886.76,0.00033972,2]
[313110652,1706757051036,-1318.89,0.00033972,2]
[313110653,1706757051046,-500.0,0.00033972,2]
[313110654,1706757051055,-500.0,0.00033972,2]
[313110655,1706757051064,-500.0,0.00033972,2]
[313110656,1706757051073,-903.92,0.00033972,2]
[313110657,1706757051082,-544.37,0.00033972,2]
[313110658,1706757051091,-500.0,0.00033972,2]
[313110659,1706757051101,-577.81,0.00033972,2]
[313110660,1706757051110,-500.0,0.00033972,2]
[313110661,1706757051120,-808.97,0.00033972,2]
[313110662,1706757051129,-588.35,0.00033972,2]
[313110663,1706757051139,-557.55,0.00033972,2]
[313110664,1706757051149,-500.94,0.00033972,2]
[313110665,1706757051159,-500.0,0.00033972,2]
[313110666,1706757051168,-1146.72,0.00033972,2]
[313110667,1706757051178,-1000.0,0.00033972,7]
[313110668,1706757051187,-500.0,0.00033972,2]
[313110669,1706757051196,-500.0,0.00033972,2]
[313110670,1706757051206,-1293.66,0.00033972,2]
[313110671,1706757051215,-500.0,0.00033972,2]
[313110672,1706757051224,-2788.23,0.00033972,2]
[313110673,1706757051233,-500.0,0.00033972,2]
[313110674,1706757051242,-500.0,0.00033972,2]
[313110675,1706757051252,-500.0,0.00033972,2]
[313110676,1706757051261,-500.0,0.00033972,2]
[313110677,1706757051270,-1674.75,0.00033972,2]
[313110678,1706757051280,-1000.0,0.00033972,7]
[313110679,1706757051290,-630.06,0.00033972,2]
[313110680,1706757051300,-586.0,0.00033972,2]
[313110681,1706757051309,-580.43,0.00033972,2]
[313110682,1706757051319,-1181.28,0.00033972,2]
[313110683,1706757051480,-500.0,0.00033972,2]
[313110684,1706757051497,-827.27,0.00033972,2]
[313110685,1706757051507,-546.73702577,0.00033972,2]
[313110686,1706757051517,-500.0,0.00033972,2]
[313110687,1706757051527,-643.03,0.00033972,2]
[313110688,1706757051536,-2346.64,0.00033972,2]
[313110689,1706757051547,-582.29,0.00033972,2]
[313110690,1706757051556,-1071.29,0.00033972,2]
[313110691,1706757051566,-500.0,0.00033972,2]
[313110692,1706757051576,-500.0,0.00033972,2]
[313110693,1706757051586,-690.12,0.00033972,2]
[313110694,1706757051595,-500.0,0.00033972,2]
[313110695,1706757051604,-500.0,0.00033972,2]
[313110696,1706757051614,-674.88,0.00033972,2]
[313110697,1706757051624,-504.05,0.00033972,2]
[313110698,1706757051633,-500.0,0.00033972,2]
[313110699,1706757051643,-1132.21,0.00033972,2]
[313110700,1706757051652,-500.0,0.00033972,2]
[313110701,1706757051663,-500.0,0.00033972,2]
[313110702,1706757051672,-500.0,0.00033972,2]
[313110703,1706757051682,-500.0,0.00033972,2]
[313110704,1706757051691,-1482.56,0.00033972,2]
[313110705,1706757051701,-2068.13,0.00033972,5]
[313110706,1706757051710,-500.0,0.00033972,2]
[313110707,1706757051719,-679.58,0.00033972,2]
[313110708,1706757051729,-1075.68,0.00033972,2]
[313110709,1706757051739,-1443.17,0.00033972,2]
[313110710,1706757051748,-763.54,0.00033972,2]
[313110711,1706757051758,-500.0,0.00033972,2]
[313110712,1706757051767,-500.0,0.00033972,2]
[313110713,1706757051777,-500.0,0.00033972,2]
[313110714,1706757051787,-801.96,0.00033972,2]
[313110715,1706757051798,-703.15,0.00033972,2]
[313110716,1706757051808,-1428.1,0.00033972,2]
[313110717,1706757051818,-500.0,0.00033972,2]
[313110718,1706757051827,-500.0,0.00033972,2]
[313110719,1706757051836,-500.0,0.00033972,2]
[313110720,1706757051846,-500.0,0.00033972,2]
[313110721,1706757051856,-500.0,0.00033972,2]
[313110722,1706757051866,-598.86,0.00033972,2]
[313110723,1706757051875,-500.0,0.00033972,2]
[313110724,1706757051884,-500.0,0.00033972,2]
[313110725,1706757051893,-500.0,0.00033972,2]
[313110726,1706757051903,-822.02,0.00033972,2]
[313110727,1706757051913,-855.84,0.00033972,2]
[313110728,1706757051922,-605.46,0.00033972,2]
[313110729,1706757051931,-500.0,0.00033972,2]
[313110730,1706757051941,-500.0,0.00033972,2]
[313110731,1706757051950,-500.0,0.00033972,2]
[313110732,1706757051959,-513.0710692,0.00033972,2]
[313110733,1706757051969,-1459.28,0.00033972,2]
[313110734,1706757051978,-636.34,0.00033972,2]
[313110735,1706757051987,-500.0,0.00033972,2]
[313110736,1706757051997,-500.0,0.00033972,2]
[313110737,1706757052007,-842.95,0.00033972,5]
[313110738,1706757052016,-631.92,0.00033972,2]
[313110739,1706757052025,-772.42,0.00033972,2]
[313110740,1706757052034,-500.0,0.00033972,2]
[313110741,1706757052043,-500.0,0.00033972,2]
[313110742,1706757052052,-515.34,0.00033972,2]
[313110743,1706757052061,-176.8,0.00033992,2]
[313110744,1706757052070,-636.49088979,0.00034,4]
[313110745,1706757052079,-600.0,0.00034,35]
[313110746,1706757052088,-671.6395,0.00034,10]
[313110747,1706757052098,-151.0201,0.00034048,4]
[313110748,1706757052107,-583.58524784,0.00034144,6]
[313110749,1706757052116,-151.0201,0.00034148,4]
[313110750,1706757052125,-6398.96170144,0.0003417,6]
[313110751,1706757052134,-850.0,0.00034199,5]
[313110752,1706757052143,-500.0,0.0003423,2]
[313110753,1706757052152,-151.29,0.00034247,2]
[313110754,1706757052161,-151.0201,0.00034248,4]
[313110755,1706757052170,-151.0201,0.00034348,4]
[313110756,1706757052180,-6398.96170144,0.00034369,6]
[313110757,1706757052189,-598.0,0.000344,2]
[313110758,1706757052199,-151.0201,0.00034448,4]
[313110759,1706757052208,-215.39002326,0.00034508,2]
[313110760,1706757052217,-611.62,0.00034517,2]
[313110761,1706757052226,-500.0,0.00034517,2]
[313110762,1706757052236,-1052.59750047,0.00034518,4]
[313110763,1706757052245,-7803.03250074,0.00034518,4]
[313110764,1706757052255,-5013.17469583,0.00034519,4]
[313110765,1706757052264,-1000.0,0.0003452,7]
[313110766,1706757052274,-500.0,0.0003452,2]
[313110767,1706757052283,-602.08,0.0003452,2]
[313110768,1706757052293,-500.0,0.0003452,2]
[313110769,1706757052302,-419.61112007,0.0003452,2]
[313110770,1706757052311,-500.0,0.0003452,10]
[313110771,1706757052320,-582.78,0.0003452,2]
[313110772,1706757052329,-500.0,0.0003452,2]
[313110773,1706757052338,-763.16,0.0003452,2]
[313110774,1706757052347,-1461.41,0.0003452,2]
[313110775,1706757052357,-500.0,0.0003452,2]
[313110776,1706757052366,-177.25026171,0.0003452,2]
[313110777,1706757052375,-152.3422105,0.0003452,2]
[313110778,1706757052384,-638.86,0.0003452,2]
[313110779,1706757052394,-539.23,0.0003452,2]
[313110780,1706757052403,-626.08,0.0003452,2]
[313110781,1706757052413,-500.0,0.0003452,2]
[313110782,1706757052422,-500.0,0.0003452,2]
[313110783,1706757052431,-974.69,0.0003452,2]
[313110784,1706757052440,-500.0,0.0003452,2]
[313110785,1706757052450,-1198.3,0.0003452,2]
[313110786,1706757052459,-535.33672736,0.0003452,2]
[313110787,1706757052468,-172.4545774,0.0003452,2]
[313110788,1706757052478,-500.0,0.0003452,2]
[313110789,1706757052489,-500.0,0.0003452,2]
[313110790,1706757052499,-500.0,0.0003452,2]
[313110791,1706757052512,-476.33,0.0003452,2]
[313110792,1706757052522,-1040.1,0.0003452,2]
[313110793,1706757052533,-772.83,0.0003452,2]
[313110794,1706757052543,-500.0,0.0003452,2]
[313110795,1706757052553,-213.01642272,0.0003452,2]
[313110796,1706757052562,-721.98,0.0003452,2]
[313110797,1706757052572,-1367.38,0.0003452,7]
[313110798,1706757052582,-500.0,0.0003452,2]
[313110799,1706757052591,-500.0,0.0003452,2]
[313110800,1706757052601,-500.0,0.0003452,2]
[313110801,1706757052610,-500.0,0.0003452,2]
[313110802,1706757052619,-500.0,0.0003452,2]
[313110803,1706757052628,-500.0,0.0003452,2]
[313110804,1706757052637,-500.0,0.0003452,2]
[313110805,1706757052646,-500.0,0.0003452,2]
[313110806,1706757052655,-1038.86,0.0003452,2]
[313110807,1706757052664,-500.0,0.0003452,2]
[313110808,1706757052673,-500.0,0.0003452,2]
[313110809,1706757052682,-500.0,0.0003452,2]
[313110810,1706757052691,-500.0,0.0003452,2]
[313110811,1706757052701,-500.0,0.0003452,2]
[313110812,1706757052710,-500.0,0.0003452,2]
[313110813,1706757052719,-500.0,0.0003452,2]
[313110814,1706757052729,-500.0,0.0003452,2]
[313110815,1706757052738,-500.0,0.0003452,2]
[313110816,1706757052748,-500.0,0.0003452,2]
[313110817,1706757052757,-500.0,0.0003452,2]
[313110818,1706757052767,-500.0,0.0003452,2]
[313110819,1706757052776,-500.0,0.0003452,2]
[313110820,1706757052785,-500.0,0.0003452,2]
[313110821,1706757052795,-1292.86,0.0003452,2]
[313110822,1706757052804,-500.0,0.0003452,2]
[313110823,1706757052814,-500.0,0.0003452,2]
[313110824,1706757052823,-500.0,0.0003452,2]
[313110825,1706757052833,-500.0,0.0003452,2]
[313110826,1706757052842,-910.9,0.0003452,2]
[313110827,1706757052852,-500.0,0.0003452,2]
[313110828,1706757052862,-567.16,0.0003452,2]
[313110829,1706757052871,-500.000001,0.0003452,2]
[313110830,1706757052880,-500.0,0.0003452,2]
[313110831,1706757052889,-500.0,0.0003452,2]
[313110832,1706757052898,-500.0,0.0003452,2]
[313110833,1706757052908,-500.0,0.0003452,2]
[313110834,1706757052918,-500.0,0.0003452,2]
[313110835,1706757052927,-500.0,0.0003452,2]
[313110836,1706757052936,-500.0,0.0003452,2]
[313110837,1706757052946,-500.0,0.0003452,2]
[313110838,1706757052955,-500.0,0.0003452,2]
[313110839,1706757052964,-500.0,0.0003452,2]
[313110840,1706757052973,-500.0,0.0003452,2]
[313110841,1706757052983,-182.77224073,0.0003452,2]
[313110842,1706757052994,-500.0,0.0003452,2]
[313110843,1706757053003,-500.0,0.0003452,2]
[313110844,1706757053013,-500.0,0.0003452,2]
[313110845,1706757053022,-500.0,0.0003452,2]
[313110846,1706757053031,-500.0,0.0003452,2]
[313110847,1706757053041,-500.0,0.0003452,2]
[313110848,1706757053050,-500.0,0.0003452,2]
[313110849,1706757053060,-500.0,0.0003452,2]
[313110850,1706757053069,-1582.9,0.0003452,2]
[313110851,1706757053079,-500.0,0.0003452,2]
[313110852,1706757053089,-521.23,0.0003452,2]
[313110853,1706757053098,-500.0,0.0003452,2]
[313110854,1706757053107,-1429.5,0.0003452,2]
[313110855,1706757053116,-802.68,0.0003452,2]
[313110856,1706757053127,-256.34351943,0.0003452,2]
[313110857,1706757053136,-1220.59,0.0003452,2]
[313110858,1706757053145,-500.0,0.0003452,2]
[313110859,1706757053154,-580.6743261,0.0003452,2]
[313110860,1706757053163,-1000.0,0.0003452,21]
[313110861,1706757053172,-18391.59,0.0003452,2]
[313110862,1706757053181,-580.02,0.0003452,2]
[313110863,1706757053190,-525.41,0.0003452,2]
[313110864,1706757053199,-2517.92,0.0003452,2]
[313110865,1706757053208,-962.68,0.0003452,2]
[313110866,1706757053217,-1052.86,0.0003452,2]
[313110867,1706757053226,-500.0,0.0003452,2]
[313110868,1706757053235,-500.0,0.0003452,2]
[313110869,1706757053243,-500.0,0.0003452,2]
[313110870,1706757053253,-1366.96,0.0003452,2]
[313110871,1706757053262,-1283.42,0.0003452,2]
[313110872,1706757053271,-2774.32,0.0003452,2]
[313110873,1706757053280,-500.0,0.0003452,2]
[313110874,1706757053289,-500.0,0.0003452,2]
[313110875,1706757053298,-500.0,0.0003452,2]
[313110876,1706757053307,-500.0,0.0003452,2]
[313110877,1706757053317,-2427.53,0.0003452,2]
[313110878,1706757053326,-500.0,0.0003452,2]
[313110879,1706757053335,-500.0,0.0003452,2]
[313110880,1706757053343,-21.68690562,0.0003452,2]
[313110881,1706757053624,-188.05503804,0.0003452,2]
[313110882,1706757053634,-73.59127934,0.0003452,2]
[313110883,1706757053650,-619.34872066,0.0003452,2]
[313110884,1706757053660,-500.0,0.0003452,2]
[313110885,1706757053672,-781.04,0.0003452,2]
[313110886,1706757053681,-500.0,0.0003452,2]
[313110887,1706757053690,-500.0,0.0003452,2]
[313110888,1706757053699,-500.0,0.0003452,2]
[313110889,1706757053709,-1265.93,0.0003452,2]
[313110890,1706757053718,-401.98470522,0.0003452,2]
[313110891,1706757054124,-98.01529478,0.0003452,2]
[313110892,1706757054133,-500.0,0.0003452,2]
[313110893,1706757054142,-608.77,0.0003452,2]
[313110894,1706757054151,-480.64370522,0.0003452,2]
[313110895,1706757054490,-317.45919882,0.00032876,2]
[313110896,1706757054500,-500.0,0.00032876,2]
[313110897,1706757054510,-499.99,0.00032926,2]
[313110898,1706757054520,-374.96766131,0.00033424,2]
[313110899,1706757054529,-19.35629478,0.0003452,2]
[313110900,1706757054539,-387.14744509,0.0003452,2]
[313110901,1706757054936,-304.9412878,0.00032875,4]
[313110902,1706757054947,-239.61839418,0.00032875,4]
[313110903,1706757054958,-729.01,0.00032876,2]
[313110904,1706757054967,-500.0,0.00032876,2]
[313110905,1706757054977,-729.01,0.00033424,2]
[313110906,1706757054989,-729.01,0.00033972,2]
[313110907,1706757054999,-112.85255491,0.0003452,2]
[313110908,1706757055008,-500.0,0.0003452,2]
[313110909,1706757055017,-780.39,0.0003452,2]
[313110910,1706757055027,-1310.07,0.0003452,2]
[313110911,1706757055036,-500.0,0.0003452,2]
[313110912,1706757055046,-320.44081066,0.0003452,2]
[313110923,1706758231462,-178.34454767,0.00023499,2]
[313110924,1706758231473,-150.0,0.000235,2]
[313110925,1706758231482,-379.60103261,0.00025,2]
[313110926,1706758231493,-108.36661186,0.00025,2]
[313110927,1706758231502,-244.85,0.00027397,2]
[313110928,1706758231511,-250.0,0.000274,2]
[313110929,1706758231521,-244.85,0.00027614,2]